fUSD/lending_fUSD_20240516
["ID","MTS","AMOUNT","RATE_DAILY","PERIOD"]
[327162335,1715867441620,-500.0,0.00010978,2]
[327162337,1715867441630,-500.0,0.00010978,2]
[327162339,1715867441639,-500.0,0.00010978,2]
[327162341,1715867441648,-500.0,0.00010978,2]
[327162343,1715867441657,-500.0,0.00010978,2]
[327162345,1715867441666,-500.0,0.00010978,2]
[327162346,1715867441675,-500.0,0.00010978,2]
[327162349,1715867441685,-500.0,0.00010978,2]
[327162350,1715867441694,-500.0,0.00010978,2]
[327162353,1715867441703,-500.0,0.00010978,2]
[327162355,1715867441712,-500.0,0.00010978,2]
[327162357,1715867441722,-500.0,0.00010978,2]
[327162359,1715867441731,-500.0,0.00010978,2]
[327162361,1715867441741,-500.0,0.00010978,2]
[327162363,1715867441750,-500.0,0.00010978,2]
[327162364,1715867441759,-500.0,0.00010978,2]
[327162367,1715867441769,-500.0,0.00010978,2]
[327162369,1715867441778,-528.09743173,0.00010978,2]
[327162371,1715867441787,-500.0,0.00010978,2]
[327162373,1715867441796,-500.0,0.00010978,2]
[327162375,1715867441805,-566.23541507,0.00010978,2]
[327162377,1715867441814,-500.0,0.00010978,2]
[327162379,1715867441823,-10000.0,0.00010979,2]
[327162381,1715867441832,-297.51,0.00010979,2]
[327162383,1715867441842,-500.0,0.00010979,2]
[327162385,1715867441851,-500.0,0.00010979,2]
[327162386,1715867441860,-500.0,0.00010979,2]
[327162388,1715867441869,-536.82,0.00010979,2]
[327162390,1715867441878,-504.14,0.00010979,2]
[327162393,1715867441887,-500.0,0.00010979,2]
[327162395,1715867441896,-500.0,0.00010979,2]
[327162397,1715867441906,-16879.70242079,0.0001098,2]
[327162398,1715867441915,-1000.0,0.00010991,2]
[327162401,1715867441924,-105783.51012077,0.00011,5]
[327162403,1715867441933,-160.3,0.00011068,2]
[327162404,1715867441942,-500.0,0.00011077,2]
[327162407,1715867441952,-500.0,0.00011077,2]
[327162409,1715867441961,-1024.83,0.00011077,2]
[327162411,1715867441970,-500.0,0.00011077,2]
[327162413,1715867441981,-500.0,0.00011077,2]
[327162415,1715867441990,-500.0,0.00011077,2]
[327162417,1715867442000,-500.0,0.00011077,2]
[327162419,1715867442009,-500.0,0.00011077,2]
[327162421,1715867442018,-500.0,0.00011077,2]
[327162423,1715867442027,-500.0,0.00011077,2]
[327162425,1715867442036,-155.18816033,0.00011078,2]
[327162426,1715867442045,-883.0724361,0.00011078,2]
[327162427,1715867442054,-377.88213118,0.00011078,2]
[327162428,1715867442064,-702.22775404,0.00011078,2]
[327162429,1715867442073,-1213.61919427,0.00011078,2]
[327162430,1715867442082,-782.26025222,0.00011078,2]
[327162431,1715867442091,-650.29177738,0.00011078,2]
[327162432,1715867442100,-500.0,0.00011078,2]
[327162433,1715867442110,-91231.96823862,0.00011078,2]
[327162436,1715867442231,-1795.51572076,0.00011078,2]
[327162437,1715867442242,-561.60693078,0.00011078,2]
[327162438,1715867442254,-4641.255,0.00011078,2]
[327162439,1715867442266,-132360.83206556,0.00011078,2]
[327162440,1715867442279,-3822.66289274,0.00011078,2]
[327162446,1715867443819,-9494.05877218,0.00011078,2]
[327162459,1715867444014,-773.4707541,0.00010781,7]
[327162460,1715867444024,-6092.10037936,0.00011078,2]
[327162461,1715867444033,-500.0,0.00011078,2]
[327162462,1715867444043,-500.0,0.00011078,2]
[327162463,1715867444053,-500.0,0.00011078,2]
[327162464,1715867444062,-500.0,0.00011078,2]
[327162465,1715867444072,-500.0,0.00011078,2]
[327162466,1715867444082,-500.0,0.00011078,2]
[327162467,1715867444092,-500.0,0.00011078,2]
[327162468,1715867444102,-500.0,0.00011078,2]
[327162469,1715867444112,-500.0,0.00011078,2]
[327162470,1715867444121,-504.14,0.00011078,2]
[327162471,1715867444131,-504.14,0.00011078,2]
[327162472,1715867444141,-500.0,0.00011078,2]
[327162473,1715867444150,-500.0,0.00011078,2]
[327162474,1715867444159,-500.0,0.00011078,2]
[327162475,1715867444169,-500.0,0.00011078,2]
[327162476,1715867444178,-500.0,0.00011078,2]
[327162477,1715867444188,-500.0,0.00011078,2]
[327162478,1715867444198,-500.0,0.00011078,2]
[327162479,1715867444207,-500.0,0.00011078,2]
[327162480,1715867444216,-500.0,0.00011078,2]
[327162481,1715867444229,-500.0,0.00011078,2]
[327162482,1715867444238,-500.0,0.00011078,2]
[327162483,1715867444248,-500.0,0.00011078,2]
[327162484,1715867444257,-500.0,0.00011078,2]
[327162485,1715867444267,-500.0,0.00011078,2]
[327162486,1715867444276,-500.0,0.00011078,2]
[327162487,1715867444286,-500.0,0.00011078,2]
[327162488,1715867444295,-500.0,0.00011078,2]
[327162489,1715867444304,-500.0,0.00011078,2]
[327162490,1715867444314,-500.0,0.00011078,2]
[327162491,1715867444323,-628.0,0.00011078,2]
[327162492,1715867444333,-500.0,0.00011078,2]
[327162493,1715867444343,-500.0,0.00011078,2]
[327162494,1715867444352,-500.0,0.00011078,2]
[327162495,1715867444362,-500.0,0.00011078,2]
[327162496,1715867444372,-500.0,0.00011078,2]
[327162498,1715867444381,-1024.83,0.00011078,2]
[327162500,1715867444390,-500.0,0.00011078,2]
[327162502,1715867444399,-500.0,0.00011078,2]
[327162504,1715867444409,-502.0816214,0.00011078,2]
[327162505,1715867444418,-518.15,0.00011078,2]
[327162508,1715867444427,-500.0,0.00011078,2]
[327162511,1715867444436,-406.07,0.00011078,2]
[327162514,1715867444446,-521.43103574,0.00011078,2]
[327162517,1715867444454,-509.75,0.00011078,2]
[327162519,1715867444463,-500.0,0.00011078,2]
[327162521,1715867444472,-184.44474831,0.00011078,2]
[327162523,1715867444484,-478.26,0.00011078,2]
[327162525,1715867444494,-500.0,0.00011078,2]
[327162527,1715867444504,-500.0,0.00011078,2]
[327162529,1715867444513,-500.0,0.00011078,2]
[327162530,1715867444523,-500.0,0.00011078,2]
[327162531,1715867444535,-621.98,0.00011078,2]
[327162532,1715867444544,-500.0,0.00011078,2]
[327162533,1715867444553,-500.0,0.00011078,2]
[327162534,1715867444563,-500.0,0.00011078,2]
[327162535,1715867444573,-500.0,0.00011078,2]
[327162536,1715867444583,-409.47,0.00011078,2]
[327162537,1715867444592,-500.0,0.00011078,2]
[327162538,1715867444601,-1468.20106656,0.00011078,2]
[327162539,1715867444614,-268.10586469,0.00011079,2]
[327162540,1715867444624,-276.92201007,0.00011079,2]
[327162541,1715867444633,-884.39312275,0.00011079,2]
[327162542,1715867444642,-500.0,0.00011079,2]
[327162543,1715867444653,-500.0,0.00011079,2]
[327162544,1715867444662,-500.0,0.00011079,2]
[327162545,1715867444671,-500.0,0.00011079,2]
[327162546,1715867444680,-500.0,0.00011079,2]
[327162547,1715867444691,-500.0,0.00011079,2]
[327162548,1715867444701,-500.0,0.00011079,2]
[327162549,1715867444712,-274.90130937,0.00011079,2]
[327162550,1715867444722,-500.0,0.00011079,2]
[327162551,1715867444733,-504.14,0.00011079,2]
[327162552,1715867444743,-504.14,0.00011079,2]
[327162553,1715867444753,-504.14,0.00011079,2]
[327162554,1715867444762,-504.14,0.00011079,2]
[327162555,1715867444772,-504.14,0.00011079,2]
[327162556,1715867444781,-504.14,0.00011079,2]
[327162557,1715867444790,-504.14,0.00011079,2]
[327162558,1715867444800,-504.14,0.00011079,2]
[327162559,1715867444810,-504.14,0.00011079,2]
[327162560,1715867444819,-504.14,0.00011079,2]
[327162561,1715867444828,-504.14,0.00011079,2]
[327162562,1715867444837,-504.14,0.00011079,2]
[327162563,1715867444847,-504.14,0.00011079,2]
[327162564,1715867444856,-504.14,0.00011079,2]
[327162565,1715867444865,-504.14,0.00011079,2]
[327162566,1715867444876,-504.14,0.00011079,2]
[327162567,1715867444887,-504.14,0.00011079,2]
[327162568,1715867444896,-500.0,0.00011079,2]
[327162569,1715867444908,-219.0,0.00011079,2]
[327162570,1715867444917,-504.14,0.00011079,2]
[327162571,1715867444926,-500.0,0.00011079,2]
[327162572,1715867444936,-623.81,0.00011079,2]
[327162573,1715867444945,-500.0,0.00011079,2]
[327162574,1715867444954,-500.0,0.00011079,2]
[327162575,1715867444963,-500.0,0.00011079,2]
[327162576,1715867444973,-500.0,0.00011079,2]
[327162577,1715867444983,-500.0,0.00011079,2]
[327162578,1715867444992,-500.0,0.00011079,2]
[327162579,1715867445001,-500.0,0.00011079,2]
[327162580,1715867445011,-500.0,0.00011079,2]
[327162581,1715867445020,-500.0,0.00011079,2]
[327162582,1715867445029,-364.53,0.00011079,2]
[327162583,1715867445038,-500.0,0.00011079,2]
[327162584,1715867445047,-500.0,0.00011079,2]
[327162585,1715867445057,-500.0,0.00011079,2]
[327162586,1715867445066,-500.0,0.00011079,2]
[327162587,1715867445076,-500.0,0.00011079,2]
[327162588,1715867445085,-500.0,0.00011079,2]
[327162589,1715867445095,-500.0,0.00011079,2]
[327162590,1715867445104,-500.0,0.00011079,2]
[327162591,1715867445113,-500.0,0.00011079,2]
[327162592,1715867445122,-500.0,0.00011079,2]
[327162593,1715867445131,-369.57,0.00011079,2]
[327162594,1715867445140,-500.0,0.00011079,2]
[327162595,1715867445150,-500.0,0.00011079,2]
[327162596,1715867445159,-500.0,0.00011079,2]
[327162597,1715867445169,-500.0,0.00011079,2]
[327162598,1715867445178,-500.0,0.00011079,2]
[327162599,1715867445189,-496.01,0.00011079,2]
[327162600,1715867445198,-633.48,0.00011079,2]
[327162601,1715867445208,-500.0,0.00011079,2]
[327162602,1715867445217,-500.0,0.00011079,2]
[327162603,1715867445227,-500.0,0.00011079,2]
[327162604,1715867445237,-500.0,0.00011079,2]
[327162605,1715867445246,-500.0,0.00011079,2]
[327162606,1715867445256,-170.07,0.00011079,2]
[327162607,1715867445265,-1024.83,0.00011079,2]
[327162608,1715867445275,-1024.83,0.00011079,2]
[327162609,1715867445284,-1024.83,0.00011079,2]
[327162610,1715867445294,-1024.83,0.00011079,2]
[327162611,1715867445304,-1024.83,0.00011079,2]
[327162612,1715867445313,-1024.83,0.00011079,2]
[327162613,1715867445323,-500.0,0.00011079,2]
[327162614,1715867445332,-1024.83,0.00011079,2]
[327162615,1715867445342,-500.0,0.00011079,2]
[327162616,1715867445351,-1024.83,0.00011079,2]
[327162617,1715867445361,-562.54,0.00011079,2]
[327162618,1715867445370,-1024.83,0.00011079,2]
[327162619,1715867445379,-1024.83,0.00011079,2]
[327162620,1715867445389,-1024.83,0.00011079,2]
[327162621,1715867445398,-1024.83,0.00011079,2]
[327162622,1715867445408,-1024.83,0.00011079,2]
[327162623,1715867445418,-1024.83,0.00011079,2]
[327162624,1715867445427,-1024.83,0.00011079,2]
[327162625,1715867445437,-1024.83,0.00011079,2]
[327162626,1715867445446,-1024.83,0.00011079,2]
[327162627,1715867445456,-1024.83,0.00011079,2]
[327162628,1715867445466,-1024.83,0.00011079,2]
[327162629,1715867445477,-1024.83,0.00011079,2]
[327162630,1715867445487,-1024.98,0.00011079,2]
[327162631,1715867445496,-452.91,0.00011079,2]
[327162632,1715867445507,-518.15,0.00011079,2]
[327162633,1715867445516,-518.15,0.00011079,2]
[327162634,1715867445526,-518.15,0.00011079,2]
[327162635,1715867445540,-518.15,0.00011079,2]
[327162636,1715867445550,-518.15,0.00011079,2]
[327162637,1715867445559,-518.15,0.00011079,2]
[327162638,1715867445569,-518.15,0.00011079,2]
[327162639,1715867445579,-518.15,0.00011079,2]
[327162640,1715867445589,-518.15,0.00011079,2]
[327162641,1715867445598,-518.15,0.00011079,2]
[327162642,1715867445609,-518.15,0.00011079,2]
[327162643,1715867445621,-518.15,0.00011079,2]
[327162644,1715867445630,-518.15,0.00011079,2]
[327162645,1715867445640,-518.15,0.00011079,2]
[327162646,1715867445650,-518.15,0.00011079,2]
[327162647,1715867445661,-518.15,0.00011079,2]
[327162648,1715867445671,-518.15,0.00011079,2]
[327162649,1715867445680,-518.15,0.00011079,2]
[327162650,1715867445690,-518.15,0.00011079,2]
[327162651,1715867445700,-518.15,0.00011079,2]
[327162652,1715867445710,-518.15,0.00011079,2]
[327162653,1715867445719,-518.3,0.00011079,2]
[327162654,1715867445732,-500.0,0.00011079,2]
[327162655,1715867445742,-500.0,0.00011079,2]
[327162656,1715867445751,-551.25465944,0.00011079,2]
[327162657,1715867445763,-500.0,0.00011079,2]
[327162658,1715867445772,-500.0,0.00011079,2]
[327162659,1715867445782,-500.0,0.00011079,2]
[327162660,1715867445792,-500.0,0.00011079,2]
[327162661,1715867445801,-500.0,0.00011079,2]
[327162662,1715867445810,-500.0,0.00011079,2]
[327162663,1715867445820,-500.0,0.00011079,2]
[327162664,1715867445829,-500.0,0.00011079,2]
[327162665,1715867445838,-500.0,0.00011079,2]
[327162666,1715867445848,-197.57,0.00011079,2]
[327162667,1715867445858,-182.82,0.00011079,2]
[327162668,1715867445867,-506.53395183,0.00011079,2]
[327162669,1715867445877,-500.0,0.00011079,2]
[327162670,1715867445886,-500.0,0.00011079,2]
[327162671,1715867445895,-500.0,0.00011079,2]
[327162672,1715867445904,-500.0,0.00011079,2]
[327162673,1715867445914,-500.0,0.00011079,2]
[327162674,1715867445923,-500.0,0.00011079,2]
[327162675,1715867445933,-500.0,0.00011079,2]
[327162676,1715867445943,-500.0,0.00011079,2]
[327162677,1715867445953,-631.14,0.00011079,2]
[327162678,1715867445964,-551.15593109,0.00011079,2]
[327162679,1715867445974,-500.0,0.00011079,2]
[327162680,1715867445986,-500.0,0.00011079,2]
[327162681,1715867445996,-500.0,0.00011079,2]
[327162682,1715867446005,-500.0,0.00011079,2]
[327162683,1715867446013,-500.0,0.00011079,2]
[327162684,1715867446023,-500.0,0.00011079,2]
[327162685,1715867446032,-500.0,0.00011079,2]
[327162686,1715867446041,-500.0,0.00011079,2]
[327162687,1715867446051,-500.0,0.00011079,2]
[327162688,1715867446060,-500.0,0.00011079,2]
[327162689,1715867446070,-500.0,0.00011079,2]
[327162690,1715867446080,-500.0,0.00011079,2]
[327162691,1715867446091,-500.0,0.00011079,2]
[327162692,1715867446102,-500.0,0.00011079,2]
[327162693,1715867446111,-468.6930152,0.00011079,2]
[327162694,1715867446121,-227948.54617267,0.0001108,2]
[327162704,1715867446739,-804.43551989,0.0001,3]
[327162705,1715867446748,-555.88982334,0.00010781,7]
[327162706,1715867446759,-378.25350976,0.00010781,7]
[327162707,1715867446771,-607.71542608,0.00010781,7]
[327162708,1715867446782,-2127.69553752,0.00010781,7]
[327162709,1715867446982,-1245.68444,0.00010781,7]
[327163969,1715868632052,-673.805041,9.321e-05,2]
[327163970,1715868632062,-628.44049077,9.367e-05,2]
[327163971,1715868632074,-153.91992673,9.367e-05,2]
[327163972,1715868632083,-430.57007327,9.368e-05,2]
[327163973,1715868632982,-598.11050968,9.368e-05,2]
[327163974,1715868633216,-950.0,9.368e-05,2]
[327164097,1715868638933,-883.0724361,9.32e-05,2]
[327164098,1715868638943,-1304.80088075,9.368e-05,2]
[327164099,1715868638953,-217.29472164,9.369e-05,2]
[327164100,1715868638962,-3259.59532668,9.421e-05,2]
[327164101,1715868638974,-324.11,9.72e-05,2]
[327164102,1715868638983,-250.0,9.743e-05,2]
[327164103,1715868638993,-1701.49,9.784e-05,2]
[327164104,1715868639004,-250.0,9.8e-05,2]
[327164105,1715868639014,-869.18,9.807e-05,2]
[327164106,1715868639023,-1000.0,9.814e-05,2]
[327164107,1715868639033,-370.97,9.814e-05,2]
[327164108,1715868639043,-152.51,9.838e-05,2]
[327164109,1715868639053,-175.69,9.89e-05,2]
[327164110,1715868639063,-804.43551989,0.0001,3]
[327164111,1715868639072,-165.44,0.00010076,2]
[327164112,1715868639082,-178.77,0.00010309,2]
[327164113,1715868639091,-1832.02512248,0.00010601,2]
[327164114,1715868639100,-19946.73,0.00010602,2]
[327164115,1715868639110,-7346.89741286,0.00010662,2]
[327164116,1715868639119,-3255.4310716,0.00010781,7]
[327164117,1715868639129,-298.78407833,0.00010781,2]
[327164118,1715868639139,-180.11767275,0.00010781,2]
[327164119,1715868639149,-415.26,0.00010849,2]
[327164120,1715868639159,-869.11,0.00010849,2]
[327164121,1715868639168,-415.26,0.00010849,2]
[327164122,1715868639178,-869.11,0.00010849,2]
[327164123,1715868639187,-415.26,0.00010849,2]
[327164124,1715868639197,-869.11,0.00010849,2]
[327164125,1715868639206,-414.94,0.00010849,2]
[327164127,1715868639216,-1422.5127,0.00010858,2]
[327164129,1715868639225,-1563.60941232,0.00010921,2]
[327164131,1715868639235,-500.0,0.00010977,2]
[327164133,1715868639244,-500.0,0.00010978,2]
[327164135,1715868639254,-6552.83174356,0.00010978,2]
[327164137,1715868639267,-8766.40255644,0.00010978,2]
[327164139,1715868639276,-15473.0605524,0.0001098,2]
[327164141,1715868639286,-267.91581094,0.0001098,2]
[327164143,1715868639296,-1926.1818835,0.0001098,2]
[327164145,1715868639305,-308.425196,0.00010991,2]
[327164147,1715868639315,-500.0,0.00011,2]
[327164149,1715868639324,-500.0,0.00011,2]
[327164151,1715868639334,-500.0,0.00011,2]
[327164153,1715868639343,-500.0,0.00011,2]
[327164155,1715868639353,-500.0,0.00011,2]
[327164157,1715868639362,-507.26,0.00011,2]
[327164159,1715868639372,-500.0,0.00011,2]
[327164161,1715868639381,-507.39,0.00011,2]
[327164164,1715868639391,-803.37762482,0.00011039,2]
[327164165,1715868639400,-1000.0,0.0001104,2]
[327164168,1715868639410,-159.15,0.0001107,2]
[327164170,1715868639419,-159.15,0.0001107,2]
[327164172,1715868639428,-159.15,0.0001107,2]
[327164173,1715868639437,-159.15,0.0001107,2]
[327164175,1715868639446,-159.15,0.0001107,2]
[327164178,1715868639462,-159.15,0.0001107,2]
[327164180,1715868639472,-159.15,0.0001107,2]
[327164182,1715868639483,-159.15,0.0001107,2]
[327164184,1715868639492,-159.15,0.0001107,2]
[327164186,1715868639502,-16007.6363759,0.00011074,2]
[327164189,1715868639516,-5216.0,0.00011074,2]
[327164191,1715868639529,-44466.76881855,0.00011074,2]
[327164193,1715868639541,-207965.15006491,0.00011074,2]
[327164304,1715868640568,-2263.88315522,0.00011074,2]
[327164305,1715868640580,-3928.67887252,0.00011074,2]
[327164306,1715868640592,-2222.0873454,0.00011074,2]
[327164307,1715868640637,-2902.90000068,0.00011074,2]
[327164368,1715868643749,-321.51822686,0.00011074,2]
[327164369,1715868643766,-6650.54220631,0.00011074,2]
[327164370,1715868643777,-17269.78652725,0.00011074,2]
[327164375,1715868645999,-500.0,0.000105,3]
[327164377,1715868646009,-1366.60714684,0.00011074,2]
[327164378,1715868646263,-560.85447281,0.00011074,2]
[327164379,1715868646280,-904.64662748,0.00011074,2]
[327164380,1715868646292,-40701.34605339,0.00011074,2]
[327164381,1715868646301,-3286.19947015,0.00011077,2]
[327164382,1715868646311,-500.0,0.00011077,2]
[327164383,1715868646320,-494.1637567,0.00011077,2]
[327164384,1715868646330,-233.8431515,0.00011077,2]
[327164385,1715868646340,-2093.2019498,0.00011077,2]
[327164386,1715868646350,-1424.3327999,0.00011077,2]
[327164387,1715868646359,-17598.4790954,0.00011077,2]
[327164388,1715868646369,-702.22775404,0.00011078,2]
[327164389,1715868646378,-1213.61919427,0.00011078,2]
[327164390,1715868646387,-586.86666819,0.00011078,2]
[327164391,1715868646397,-377.88213118,0.00011078,2]
[327164392,1715868646407,-155.0,0.00011078,2]
[327164393,1715868646417,-155.0,0.00011078,2]
[327164394,1715868646426,-528.44625348,0.00011078,2]
[327164395,1715868646435,-155.18816033,0.00011078,2]
[327164396,1715868646445,-329.4599998,0.00011078,2]
[327164397,1715868646454,-262.92731062,0.00011079,2]
[327164398,1715868646464,-500.0,0.00011079,2]
[327164399,1715868646473,-500.0,0.00011079,2]
[327164400,1715868646483,-500.0,0.00011079,2]
[327164401,1715868646492,-500.0,0.00011079,2]
[327164402,1715868646502,-500.0,0.00011079,2]
[327164403,1715868646513,-500.0,0.00011079,2]
[327164404,1715868646522,-500.0,0.00011079,2]
[327164405,1715868646532,-500.0,0.00011079,2]
[327164406,1715868646541,-500.0,0.00011079,2]
[327164407,1715868646550,-500.0,0.00011079,2]
[327164408,1715868646560,-500.0,0.00011079,2]
[327164409,1715868646569,-500.0,0.00011079,2]
[327164410,1715868646578,-500.0,0.00011079,2]
[327164411,1715868646587,-500.0,0.00011079,2]
[327164412,1715868646597,-500.0,0.00011079,2]
[327164413,1715868646606,-500.0,0.00011079,2]
[327164414,1715868646616,-500.0,0.00011079,2]
[327164415,1715868646626,-500.0,0.00011079,2]
[327164416,1715868646636,-500.0,0.00011079,2]
[327164417,1715868646646,-500.0,0.00011079,2]
[327164418,1715868646655,-500.0,0.00011079,2]
[327164419,1715868646665,-500.0,0.00011079,2]
[327164420,1715868646674,-500.0,0.00011079,2]
[327164421,1715868646684,-500.0,0.00011079,2]
[327164422,1715868646694,-328.2870937,0.00011079,2]
[327164423,1715868646703,-500.0,0.00011079,2]
[327164424,1715868646713,-500.0,0.00011079,2]
[327164425,1715868646723,-500.0,0.00011079,2]
[327164426,1715868646734,-500.0,0.00011079,2]
[327164427,1715868646743,-491.06499917,0.00011079,2]
[327164428,1715868646753,-500.0,0.00011079,2]
[327164429,1715868646765,-500.0,0.00011079,2]
[327164430,1715868646774,-500.0,0.00011079,2]
[327164431,1715868646783,-500.0,0.00011079,2]
[327164432,1715868646793,-500.0,0.00011079,2]
[327164433,1715868646802,-500.0,0.00011079,2]
[327164434,1715868646811,-500.0,0.00011079,2]
[327164435,1715868646821,-500.0,0.00011079,2]
[327164436,1715868646830,-500.0,0.00011079,2]
[327164437,1715868646840,-524.83,0.00011079,2]
[327164438,1715868646850,-500.0,0.00011079,2]
[327164439,1715868646859,-500.0,0.00011079,2]
[327164440,1715868646868,-500.0,0.00011079,2]
[327164441,1715868646880,-500.0,0.00011079,2]
[327164442,1715868646891,-174.3437,0.00011079,2]
[327164443,1715868646901,-500.0,0.00011079,2]
[327164444,1715868646910,-500.0,0.00011079,2]
[327164445,1715868646920,-500.0,0.00011079,2]
[327164446,1715868646930,-500.0,0.00011079,2]
[327164447,1715868646939,-500.0,0.00011079,2]
[327164448,1715868646948,-500.0,0.00011079,2]
[327164449,1715868646959,-500.0,0.00011079,2]
[327164450,1715868646969,-604.27288082,0.00011079,2]
[327164451,1715868646979,-163.15320036,0.00011079,2]
[327164452,1715868646988,-500.0,0.00011079,2]
[327164453,1715868646999,-500.0,0.00011079,2]
[327164454,1715868647010,-500.0,0.00011079,2]
[327164455,1715868647019,-500.0,0.00011079,2]
[327164456,1715868647028,-500.0,0.00011079,2]
[327164457,1715868647039,-500.0,0.00011079,2]
[327164458,1715868647050,-184.2170299,0.00011079,2]
[327164459,1715868647060,-500.0,0.00011079,2]
[327164460,1715868647070,-500.0,0.00011079,2]
[327164461,1715868647082,-500.0,0.00011079,2]
[327164462,1715868647092,-500.0,0.00011079,2]
[327164463,1715868647102,-199.27,0.00011079,2]
[327164464,1715868647112,-500.0,0.00011079,2]
[327164465,1715868647121,-500.0,0.00011079,2]
[327164466,1715868647131,-592.6,0.00011079,2]
[327164467,1715868647140,-500.0,0.00011079,2]
[327164468,1715868647149,-500.0,0.00011079,2]
[327164469,1715868647159,-500.0,0.00011079,2]
[327164470,1715868647168,-500.0,0.00011079,2]
[327164471,1715868647177,-500.0,0.00011079,2]
[327164472,1715868647186,-120805.58066421,0.0001108,2]
[327164473,1715868806732,259.54229965,0.0001108,30]
[327164477,1715868978431,259.54229965,0.0001108,30]
[327164478,1715869000716,155.46,8.219e-05,2]
[327164479,1715869177176,1774.33579139,7.808e-05,2]
[327164480,1715869177199,1526.95388363,7.808e-05,2]
[327164481,1715869197509,1834.04981946,7.808e-05,2]
[327164482,1715869217172,638.99629691,7.808e-05,2]
[327164483,1715869217209,1195.05352255,7.808e-05,2]
[327164484,1715869235187,955.53995594,7.808e-05,2]
[327164485,1715869253189,955.53995594,7.418e-05,2]
[327164486,1715869269179,150.0,7.418e-05,2]
[327164487,1715869269206,150.0,7.418e-05,2]
[327164488,1715869269229,150.0,7.418e-05,2]
[327164489,1715869269254,177.99,7.418e-05,2]
[327164490,1715869269278,327.54995594,7.418e-05,2]
[327164491,1715869285179,566.31660963,7.418e-05,2]
[327164492,1715869285201,389.22334631,7.418e-05,2]
[327164493,1715869307178,955.53995594,7.047e-05,2]
[327164494,1715869323190,955.53995594,7.047e-05,2]
[327164495,1715869347176,955.53995594,7.047e-05,2]
[327164496,1715869369185,744.15678587,6.695e-05,2]
[327164497,1715869369211,211.38317007,6.695e-05,2]
[327164498,1715869385194,955.53995594,6.695e-05,2]
[327164499,1715869403196,955.53995594,6.695e-05,2]
[327164500,1715869421208,815.70932121,6.36e-05,2]
[327164501,1715869773314,-2000.0,0.00010524,7]
[327164503,1715869800562,-2000.0,0.00010524,7]
[327164514,1715869832123,-250.0,9.619e-05,2]
[327164516,1715869832133,-3.083484,9.643e-05,2]
[327164518,1715869832146,-151.916516,9.643e-05,2]
[327164520,1715869832155,-217.29472164,9.644e-05,2]
[327164522,1715869832165,-230.78876236,9.644e-05,2]
[327164525,1715869832382,-652.28367374,9.644e-05,2]
[327164526,1715869832392,-344.30204982,9.645e-05,2]
[327164527,1715869832401,-623.2851193,9.645e-05,2]
[327164528,1715869832411,-782.3604175,9.646e-05,2]
[327164529,1715869832420,-1272.16407144,9.647e-05,2]
[327164530,1715869832429,-1208.2,9.669e-05,2]
[327164531,1715869832439,-175.69,9.676e-05,2]
[327164532,1715869832448,-150.0,9.707e-05,2]
[327164533,1715869832457,-12184.59256801,9.708e-05,2]
[327164534,1715869832468,-2708.4,9.708e-05,2]
[327164535,1715869832485,-300.33,9.708e-05,2]
[327164536,1715869833982,-255.10895048,9.708e-05,2]